[Event "*** MasterClass Titled Tuesday Blitz"]
[Site "Chess.com"]
[Date "2017.12.05"]
[Round "9"]
[White "likantrophuss"]
[Black "nurmiTV"]
[Result "1-0"]
[WhiteElo "2462"]
[BlackElo "2457"]
[TimeControl "180+2"]
[EndTime "16:15:08 PST"]
[Termination "likantrophuss won on time"]

1. Nf3 {[%clk 0:02:57.7]} 1... g6 {[%clk 0:02:58.4]} 2. g3 {[%clk 0:02:58.9]}
2... Bg7 {[%clk 0:03:00.3]} 3. Bg2 {[%clk 0:03:00.7]} 3... c5 {[%clk 0:02:58]}
4. O-O {[%clk 0:03:02.6]} 4... Nc6 {[%clk 0:02:58.6]} 5. c4 {[%clk 0:03:03.8]}
5... e6 {[%clk 0:02:59.7]} 6. Nc3 {[%clk 0:03:04.4]} 6... Nge7 {[%clk
0:03:00.7]} 7. d3 {[%clk 0:03:05.6]} 7... O-O {[%clk 0:03:01.8]} 8. Bg5 {[%clk
0:03:06.5]} 8... h6 {[%clk 0:03:02.5]} 9. Bxe7 {[%clk 0:03:07.7]} 9... Qxe7
{[%clk 0:03:02]} 10. Nd2 {[%clk 0:03:09]} 10... d6 {[%clk 0:02:59.9]} 11. Rb1
{[%clk 0:03:09.9]} 11... Rd8 {[%clk 0:02:52.7]} 12. e3 {[%clk 0:03:10.6]} 12...
a6 {[%clk 0:02:45.7]} 13. Qe2 {[%clk 0:03:11.6]} 13... Rb8 {[%clk 0:02:45.9]}
14. Rfc1 {[%clk 0:03:10.8]} 14... Qc7 {[%clk 0:02:43]} 15. a3 {[%clk 0:03:08.3]}
15... Ne7 {[%clk 0:02:32.6]} 16. b4 {[%clk 0:03:07.6]} 16... b6 {[%clk
0:02:33.6]} 17. Nb3 {[%clk 0:02:57.3]} 17... Bd7 {[%clk 0:02:29.2]} 18. h3
{[%clk 0:02:39]} 18... Rdc8 {[%clk 0:02:22.3]} 19. Qd2 {[%clk 0:02:28.5]} 19...
Qa7 {[%clk 0:02:11.2]} 20. bxc5 {[%clk 0:02:21.3]} 20... bxc5 {[%clk 0:02:00.7]}
21. Na5 {[%clk 0:02:22.1]} 21... Qc7 {[%clk 0:01:58.4]} 22. Ne2 {[%clk
0:02:10.5]} 22... Rxb1 {[%clk 0:01:19.8]} 23. Rxb1 {[%clk 0:02:10.6]} 23... Rb8
{[%clk 0:01:21.7]} 24. Rxb8+ {[%clk 0:02:10.4]} 24... Qxb8 {[%clk 0:01:23.6]}
25. d4 {[%clk 0:02:06.2]} 25... cxd4 {[%clk 0:01:10.3]} 26. exd4 {[%clk
0:02:06.9]} 26... Qb1+ {[%clk 0:01:03.8]} 27. Kh2 {[%clk 0:02:07.7]} 27... Qb6
{[%clk 0:01:04.6]} 28. c5 {[%clk 0:01:49.6]} 28... Qc7 {[%clk 0:01:00.3]} 29.
Nb7 {[%clk 0:01:34.5]} 29... dxc5 {[%clk 0:00:57.6]} 30. dxc5 {[%clk 0:01:34.1]}
30... Nf5 {[%clk 0:00:54.9]} 31. Qa5 {[%clk 0:01:01.4]} 31... Qe5 {[%clk
0:00:36]} 32. Qd8+ {[%clk 0:01:01.1]} 32... Kh7 {[%clk 0:00:36.4]} 33. Nf4
{[%clk 0:01:01]} 33... Bb5 {[%clk 0:00:29.9]} 34. c6 {[%clk 0:00:53.1]} 34...
Bf6 {[%clk 0:00:24.6]} 35. Qf8 {[%clk 0:00:53.5]} 35... Qc7 {[%clk 0:00:22.4]}
36. Nxe6 {[%clk 0:00:47.8]} 36... fxe6 {[%clk 0:00:16.9]} 37. Qxf6 {[%clk
0:00:48.5]} 37... Bxc6 {[%clk 0:00:18.3]} 38. Bxc6 {[%clk 0:00:37]} 38... Qxc6
{[%clk 0:00:20.2]} 39. Qf7+ {[%clk 0:00:37.9]} 39... Ng7 {[%clk 0:00:21.2]} 40.
Nd8 {[%clk 0:00:37.4]} 40... Qe4 {[%clk 0:00:18.2]} 41. h4 {[%clk 0:00:34.2]}
41... h5 {[%clk 0:00:18.6]} 42. Qf6 {[%clk 0:00:32.5]} 42... Qf5 {[%clk
0:00:18.5]} 43. Qd4 {[%clk 0:00:31.2]} 43... e5 {[%clk 0:00:18.4]} 44. Qc5
{[%clk 0:00:26.8]} 44... e4 {[%clk 0:00:18.5]} 45. Qd4 {[%clk 0:00:26.5]} 45...
a5 {[%clk 0:00:16.3]} 46. a4 {[%clk 0:00:26.1]} 46... Qf3 {[%clk 0:00:15]} 47.
Nc6 {[%clk 0:00:20.7]} 47... Qd3 {[%clk 0:00:14.5]} 48. Qb6 {[%clk 0:00:18.4]}
48... Qc2 {[%clk 0:00:08.4]} 49. Ne5 {[%clk 0:00:18.5]} 49... e3 {[%clk
0:00:06.5]} 50. Qxe3 {[%clk 0:00:19.7]} 50... Qxa4 {[%clk 0:00:07.4]} 51. Nf7
{[%clk 0:00:20.3]} 51... Qg4 {[%clk 0:00:08]} 52. Ng5+ {[%clk 0:00:21.4]} 52...
Kh6 {[%clk 0:00:09]} 53. Qd2 {[%clk 0:00:19.8]} 53... Qf5 {[%clk 0:00:09.5]} 54.
f3 {[%clk 0:00:19.5]} 54... a4 {[%clk 0:00:10.2]} 55. Qd8 {[%clk 0:00:19.9]}
55... Qc2+ {[%clk 0:00:09]} 56. Kh3 {[%clk 0:00:21.2]} 56... Qf5+ {[%clk
0:00:09.7]} 57. Kg2 {[%clk 0:00:21.2]} 57... Qc2+ {[%clk 0:00:10.8]} 58. Kg1
{[%clk 0:00:21.9]} 58... Qb1+ {[%clk 0:00:10.8]} 59. Kh2 {[%clk 0:00:23.2]}
59... Qb2+ {[%clk 0:00:12.3]} 60. Kh3 {[%clk 0:00:24.2]} 60... Nf5 {[%clk
0:00:13.5]} 61. Nf7+ {[%clk 0:00:23.6]} 61... Kh7 {[%clk 0:00:13.5]} 62. Ng5+
{[%clk 0:00:24.7]} 62... Kg7 {[%clk 0:00:15]} 63. Qd7+ {[%clk 0:00:24.8]} 63...
Kf6 {[%clk 0:00:12.7]} 64. Qe6+ {[%clk 0:00:24.1]} 64... Kg7 {[%clk 0:00:14.1]}
65. Qf7+ {[%clk 0:00:25.2]} 1-0

[Event "*** MasterClass Titled Tuesday Blitz"]
[Site "Chess.com"]
[Date "2017.12.05"]
[Round "9"]
[White "Indianlad"]
[Black "tigra"]
[Result "0-1"]
[WhiteElo "2599"]
[BlackElo "2658"]
[TimeControl "180+2"]
[EndTime "16:15:26 PST"]
[Termination "tigra won on time"]

1. e4 {[%clk 0:03:00.2]} 1... c5 {[%clk 0:02:59.7]} 2. Nf3 {[%clk 0:03:01.7]}
2... g6 {[%clk 0:03:01.3]} 3. h4 {[%clk 0:02:59.6]} 3... d6 {[%clk 0:03:00.3]}
4. d4 {[%clk 0:02:57.3]} 4... cxd4 {[%clk 0:02:59.8]} 5. h5 {[%clk 0:02:58.8]}
5... e5 {[%clk 0:02:53.9]} 6. hxg6 {[%clk 0:02:59.1]} 6... fxg6 {[%clk
0:02:55.5]} 7. c3 {[%clk 0:03:00.6]} 7... Nc6 {[%clk 0:02:51.3]} 8. Bc4 {[%clk
0:03:00]} 8... Nf6 {[%clk 0:02:47.9]} 9. Ng5 {[%clk 0:03:01]} 9... Qb6 {[%clk
0:02:23.6]} 10. Na3 {[%clk 0:02:28.9]} 10... Be7 {[%clk 0:02:17.9]} 11. Bf7+
{[%clk 0:02:29.1]} 11... Kf8 {[%clk 0:02:05.1]} 12. Nc4 {[%clk 0:02:04.2]} 12...
Qa6 {[%clk 0:01:59.2]} 13. Be6 {[%clk 0:01:50.5]} 13... Bxe6 {[%clk 0:01:57.8]}
14. Nxe6+ {[%clk 0:01:51.2]} 14... Kf7 {[%clk 0:01:58.6]} 15. Ng5+ {[%clk
0:01:52]} 15... Ke8 {[%clk 0:01:57.5]} 16. Qb3 {[%clk 0:01:49.4]} 16... Nd8
{[%clk 0:01:30.5]} 17. cxd4 {[%clk 0:01:46.2]} 17... Rc8 {[%clk 0:01:30.4]} 18.
Na3 {[%clk 0:01:40.3]} 18... exd4 {[%clk 0:01:28.9]} 19. Bd2 {[%clk 0:01:37.3]}
19... Rc5 {[%clk 0:01:25.6]} 20. Rc1 {[%clk 0:01:33.5]} 20... Qc6 {[%clk
0:00:51]} 21. Rxc5 {[%clk 0:01:31.4]} 21... dxc5 {[%clk 0:00:52.2]} 22. O-O
{[%clk 0:01:31.5]} 22... h6 {[%clk 0:00:49.5]} 23. Nf3 {[%clk 0:01:31.7]} 23...
Nxe4 {[%clk 0:00:47.5]} 24. Nc4 {[%clk 0:01:27.6]} 24... Nf7 {[%clk 0:00:19.4]}
25. Re1 {[%clk 0:01:27.3]} 25... Nxd2 {[%clk 0:00:18.7]} 26. Ncxd2 {[%clk
0:01:25.4]} 26... Kf8 {[%clk 0:00:18.9]} 27. Re6 {[%clk 0:01:22.6]} 27... c4
{[%clk 0:00:18.3]} 28. Qxc4 {[%clk 0:01:22.8]} 28... Qxc4 {[%clk 0:00:19.4]} 29.
Nxc4 {[%clk 0:01:24.7]} 29... Ng5 {[%clk 0:00:15.4]} 30. Nxg5 {[%clk 0:01:25]}
30... Bxg5 {[%clk 0:00:16.6]} 31. Ne5 {[%clk 0:01:20.4]} 31... Rh7 {[%clk
0:00:17.6]} 32. f4 {[%clk 0:01:21.8]} 32... Bd8 {[%clk 0:00:14.4]} 33. Nxg6+
{[%clk 0:01:17.5]} 33... Kg7 {[%clk 0:00:13]} 34. Ne5 {[%clk 0:01:10.7]} 34...
Rh8 {[%clk 0:00:10.2]} 35. Rg6+ {[%clk 0:01:06.9]} 35... Kh7 {[%clk 0:00:11.3]}
36. Rd6 {[%clk 0:01:06.9]} 36... Rf8 {[%clk 0:00:11.3]} 37. Rd7+ {[%clk
0:01:05.4]} 37... Kg8 {[%clk 0:00:12]} 38. g3 {[%clk 0:01:02.5]} 38... Bb6
{[%clk 0:00:12.7]} 39. Kg2 {[%clk 0:01:00.4]} 39... Rd8 {[%clk 0:00:13.5]} 40.
Rxd8+ {[%clk 0:00:59.4]} 40... Bxd8 {[%clk 0:00:15.1]} 41. Kf3 {[%clk
0:00:59.7]} 41... h5 {[%clk 0:00:14.1]} 42. Ke4 {[%clk 0:00:55.6]} 42... Kg7
{[%clk 0:00:15]} 43. Nf3 {[%clk 0:00:50.6]} 43... d3 {[%clk 0:00:14.4]} 44. Kxd3
{[%clk 0:00:50.4]} 44... Bb6 {[%clk 0:00:15.9]} 45. Ke4 {[%clk 0:00:50.1]} 45...
Bf2 {[%clk 0:00:16.5]} 46. Nh4 {[%clk 0:00:46.9]} 46... Kf6 {[%clk 0:00:17.3]}
47. Kf3 {[%clk 0:00:48.4]} 47... Bd4 {[%clk 0:00:17.7]} 48. b3 {[%clk
0:00:49.3]} 48... b5 {[%clk 0:00:18.5]} 49. g4 {[%clk 0:00:50.8]} 49... hxg4+
{[%clk 0:00:18.2]} 50. Kxg4 {[%clk 0:00:52.7]} 50... a5 {[%clk 0:00:19.8]} 51.
Kf3 {[%clk 0:00:53]} 51... a4 {[%clk 0:00:20.1]} 52. Ke4 {[%clk 0:00:54.1]}
52... axb3 {[%clk 0:00:17.4]} 53. axb3 {[%clk 0:00:55.5]} 53... Bc3 {[%clk
0:00:18.2]} 54. Nf5 {[%clk 0:00:56.9]} 54... Bb2 {[%clk 0:00:17.7]} 55. Nd6
{[%clk 0:00:55.3]} 55... b4 {[%clk 0:00:19]} 56. Nf5 {[%clk 0:00:54.5]} 56...
Bc3 {[%clk 0:00:18.8]} 57. Ne3 {[%clk 0:00:52.2]} 57... Bd2 {[%clk 0:00:19.9]}
58. Nd5+ {[%clk 0:00:25.3]} 58... Ke6 {[%clk 0:00:20.8]} 59. f5+ {[%clk
0:00:22.2]} 59... Kd6 {[%clk 0:00:22.1]} 0-1

[Event "*** MasterClass Titled Tuesday Blitz"]
[Site "Chess.com"]
[Date "2017.12.05"]
[Round "9"]
[White "StellarChessPro"]
[Black "chidori_boruto"]
[Result "1/2-1/2"]
[WhiteElo "2346"]
[BlackElo "2526"]
[TimeControl "180+2"]
[EndTime "16:15:28 PST"]
[Termination "Game drawn by stalemate"]

1. d4 {[%clk 0:03:01.9]} 1... d5 {[%clk 0:03:00.3]} 2. Nf3 {[%clk 0:03:01.6]}
2... Nf6 {[%clk 0:03:00.9]} 3. e3 {[%clk 0:03:00.3]} 3... c5 {[%clk 0:03:01.4]}
4. dxc5 {[%clk 0:03:01.1]} 4... e6 {[%clk 0:03:02]} 5. c4 {[%clk 0:03:01.3]}
5... Bxc5 {[%clk 0:03:02.9]} 6. Nc3 {[%clk 0:03:02]} 6... O-O {[%clk 0:03:02.5]}
7. cxd5 {[%clk 0:03:02.8]} 7... exd5 {[%clk 0:03:03]} 8. Be2 {[%clk 0:03:03.5]}
8... Nc6 {[%clk 0:03:03.9]} 9. O-O {[%clk 0:03:04.5]} 9... a6 {[%clk 0:03:04.7]}
10. h3 {[%clk 0:03:05.7]} 10... Qd6 {[%clk 0:03:02.2]} 11. b3 {[%clk 0:03:05.7]}
11... Rd8 {[%clk 0:03:02.5]} 12. Bb2 {[%clk 0:03:06.5]} 12... d4 {[%clk
0:03:03.6]} 13. exd4 {[%clk 0:03:05.9]} 13... Nxd4 {[%clk 0:03:04.2]} 14. Nxd4
{[%clk 0:03:07.8]} 14... Bxd4 {[%clk 0:03:04.9]} 15. Bf3 {[%clk 0:03:07.7]}
15... Bf5 {[%clk 0:02:43.9]} 16. Na4 {[%clk 0:02:55.8]} 16... Be4 {[%clk
0:02:34.6]} 17. Bxe4 {[%clk 0:02:49.2]} 17... Nxe4 {[%clk 0:02:36.5]} 18. Qxd4
{[%clk 0:02:48.5]} 18... Qxd4 {[%clk 0:02:38.4]} 19. Bxd4 {[%clk 0:02:50.2]}
19... Rxd4 {[%clk 0:02:39.4]} 20. Rad1 {[%clk 0:02:42.3]} 20... Rad8 {[%clk
0:02:40]} 21. Rxd4 {[%clk 0:02:43.1]} 21... Rxd4 {[%clk 0:02:41.9]} 22. Re1
{[%clk 0:02:43]} 22... g6 {[%clk 0:02:31.8]} 23. f3 {[%clk 0:02:43.4]} 23... Ng3
{[%clk 0:02:29.5]} 24. Nc5 {[%clk 0:02:43.7]} 24... Rd2 {[%clk 0:02:25.3]} 25.
a4 {[%clk 0:02:42.3]} 25... b5 {[%clk 0:02:24.9]} 26. axb5 {[%clk 0:02:41.9]}
26... axb5 {[%clk 0:02:25.3]} 27. Ne4 {[%clk 0:02:43.8]} 27... Nxe4 {[%clk
0:02:25.5]} 28. Rxe4 {[%clk 0:02:44.2]} 28... Kg7 {[%clk 0:02:20.7]} 29. Rb4
{[%clk 0:02:43.3]} 29... Rd5 {[%clk 0:02:21.2]} 30. Re4 {[%clk 0:02:44.7]} 30...
Rd2 {[%clk 0:02:18]} 31. Re5 {[%clk 0:02:43.3]} 31... b4 {[%clk 0:02:10.3]} 32.
Re4 {[%clk 0:02:44]} 32... Kf6 {[%clk 0:02:09.8]} 33. Rxb4 {[%clk 0:02:44.6]}
33... Rb2 {[%clk 0:02:10.3]} 34. Rb7 {[%clk 0:02:45.2]} 34... h5 {[%clk
0:02:10.2]} 35. h4 {[%clk 0:02:42.3]} 35... Ke6 {[%clk 0:02:07.7]} 36. Kh2
{[%clk 0:02:42.4]} 36... f6 {[%clk 0:02:07.9]} 37. Kg3 {[%clk 0:02:43.4]} 37...
Kf5 {[%clk 0:02:07.8]} 38. b4 {[%clk 0:02:42.2]} 38... g5 {[%clk 0:02:08.4]} 39.
hxg5 {[%clk 0:02:42.7]} 39... fxg5 {[%clk 0:02:10.3]} 40. b5 {[%clk 0:02:42.2]}
40... Rb3 {[%clk 0:02:07.3]} 41. b6 {[%clk 0:02:42.1]} 41... h4+ {[%clk
0:01:36.2]} 42. Kh2 {[%clk 0:02:40.1]} 42... Kg6 {[%clk 0:01:34]} 43. Rb8 {[%clk
0:02:39.8]} 43... Rb4 {[%clk 0:01:30.5]} 44. Kh3 {[%clk 0:02:40.3]} 44... Kg7
{[%clk 0:01:30.1]} 45. b7 {[%clk 0:02:35.5]} 45... Kh7 {[%clk 0:01:29.3]} 46.
Kh2 {[%clk 0:02:31.8]} 46... Rb1 {[%clk 0:01:29.2]} 47. Kh3 {[%clk 0:02:30.3]}
47... Rb4 {[%clk 0:01:26.7]} 48. f4 {[%clk 0:02:26.7]} 48... gxf4 {[%clk
0:01:23.3]} 49. Kg4 {[%clk 0:02:15.1]} 49... Kg7 {[%clk 0:01:18.4]} 50. Kf3
{[%clk 0:02:11.1]} 50... Kh7 {[%clk 0:01:11.7]} 51. Ke2 {[%clk 0:02:10.5]} 51...
Kg7 {[%clk 0:00:57.9]} 52. Kf2 {[%clk 0:02:10.1]} 52... Kh7 {[%clk 0:00:57.7]}
53. Kf3 {[%clk 0:02:11.2]} 53... Kg7 {[%clk 0:00:57.2]} 54. Kg4 {[%clk
0:02:12.5]} 54... Kh7 {[%clk 0:00:57]} 55. Kh3 {[%clk 0:02:10.3]} 55... Kg7
{[%clk 0:00:56.6]} 56. Kh2 {[%clk 0:02:11.3]} 56... Rb3 {[%clk 0:00:52.7]} 57.
Kg1 {[%clk 0:02:07.5]} 57... Rb2 {[%clk 0:00:52.3]} 58. Kf1 {[%clk 0:02:05.8]}
58... Kh7 {[%clk 0:00:52.7]} 59. Rf8 {[%clk 0:02:05.3]} 59... Rxb7 {[%clk
0:00:50.3]} 60. Rxf4 {[%clk 0:02:06.2]} 60... Rb2 {[%clk 0:00:42.5]} 61. Rxh4+
{[%clk 0:02:06.4]} 61... Kg6 {[%clk 0:00:43.1]} 62. Kg1 {[%clk 0:02:07.6]} 62...
Kg5 {[%clk 0:00:40.5]} 63. Rh8 {[%clk 0:02:08.2]} 63... Kg4 {[%clk 0:00:39.1]}
64. Kh2 {[%clk 0:02:08.4]} 64... Ra2 {[%clk 0:00:35.7]} 65. Rg8+ {[%clk
0:02:08.5]} 65... Kh4 {[%clk 0:00:36.1]} 66. Rb8 {[%clk 0:02:06.3]} 66... Rc2
{[%clk 0:00:35.4]} 67. Rb4+ {[%clk 0:02:06.3]} 67... Kg5 {[%clk 0:00:35.5]} 68.
Kh3 {[%clk 0:02:07.8]} 68... Kg6 {[%clk 0:00:29.8]} 69. g3 {[%clk 0:02:06.7]}
69... Rc5 {[%clk 0:00:30.2]} 70. Kg4 {[%clk 0:02:07.3]} 70... Ra5 {[%clk
0:00:30.7]} 71. Rb6+ {[%clk 0:02:07.6]} 71... Kg7 {[%clk 0:00:30.4]} 72. Kh4
{[%clk 0:02:09.4]} 72... Rc5 {[%clk 0:00:29.5]} 73. g4 {[%clk 0:02:10.1]} 73...
Ra5 {[%clk 0:00:29.8]} 74. Re6 {[%clk 0:02:09.6]} 74... Rb5 {[%clk 0:00:29.9]}
75. Re1 {[%clk 0:02:09.6]} 75... Ra5 {[%clk 0:00:30.6]} 76. Rf1 {[%clk
0:02:10.3]} 76... Rb5 {[%clk 0:00:31.1]} 77. Rc1 {[%clk 0:02:11.1]} 77... Ra5
{[%clk 0:00:31.5]} 78. g5 {[%clk 0:02:12.5]} 78... Ra2 {[%clk 0:00:28]} 79. Rg1
{[%clk 0:02:10]} 79... Kg6 {[%clk 0:00:26.9]} 80. Rg4 {[%clk 0:02:06.5]} 80...
Ra1 {[%clk 0:00:25.2]} 81. Rg2 {[%clk 0:02:06.4]} 81... Ra4+ {[%clk 0:00:23.1]}
82. Rg4 {[%clk 0:02:07.6]} 82... Ra1 {[%clk 0:00:23.4]} 83. Rg3 {[%clk
0:02:06.6]} 83... Ra4+ {[%clk 0:00:23.3]} 84. Kh3 {[%clk 0:02:07.3]} 84... Rb4
{[%clk 0:00:24.1]} 85. Rg4 {[%clk 0:02:08.1]} 85... Rb1 {[%clk 0:00:21.3]} 86.
Rg2 {[%clk 0:02:08.1]} 86... Rb5 {[%clk 0:00:21.2]} 87. Kh4 {[%clk 0:02:08.6]}
87... Rb4+ {[%clk 0:00:22.1]} 88. Rg4 {[%clk 0:02:09.7]} 88... Rxg4+ {[%clk
0:00:23.1]} 89. Kxg4 {[%clk 0:02:09.5]} 89... Kg7 {[%clk 0:00:24.2]} 90. Kh5
{[%clk 0:02:11.4]} 90... Kh7 {[%clk 0:00:25.2]} 91. Kg4 {[%clk 0:02:13.2]} 91...
Kg6 {[%clk 0:00:26.2]} 92. Kf4 {[%clk 0:02:15.1]} 92... Kg7 {[%clk 0:00:27.4]}
93. Kf5 {[%clk 0:02:17]} 93... Kf7 {[%clk 0:00:28.6]} 94. Kg4 {[%clk 0:02:18.9]}
94... Kg6 {[%clk 0:00:29.6]} 95. Kf4 {[%clk 0:02:20.8]} 95... Kg7 {[%clk
0:00:30.6]} 96. Kf5 {[%clk 0:02:22.7]} 96... Kf7 {[%clk 0:00:31.8]} 97. g6+
{[%clk 0:02:24.6]} 97... Kg7 {[%clk 0:00:32.4]} 98. Kg5 {[%clk 0:02:25.4]} 98...
Kg8 {[%clk 0:00:33.5]} 99. Kf5 {[%clk 0:02:26.6]} 99... Kg7 {[%clk 0:00:34.4]}
100. Kg5 {[%clk 0:02:27.7]} 100... Kg8 {[%clk 0:00:35.5]} 101. Kf6 {[%clk
0:02:29.6]} 101... Kf8 {[%clk 0:00:35.1]} 102. Kg5 {[%clk 0:02:31.5]} 102... Kg7
{[%clk 0:00:36]} 103. Kh5 {[%clk 0:02:32.5]} 103... Kg8 {[%clk 0:00:36.5]} 104.
Kh6 {[%clk 0:02:34.3]} 104... Kh8 {[%clk 0:00:37.4]} 105. Kg5 {[%clk 0:02:35.7]}
105... Kg7 {[%clk 0:00:38.1]} 106. Kf5 {[%clk 0:02:37.5]} 106... Kg8 {[%clk
0:00:38.8]} 107. Kf6 {[%clk 0:02:39.4]} 107... Kf8 {[%clk 0:00:39.8]} 108. g7+
{[%clk 0:02:40.3]} 108... Kg8 {[%clk 0:00:40.5]} 109. Kg6 {[%clk 0:02:42.1]}
1/2-1/2

[Event "*** MasterClass Titled Tuesday Blitz"]
[Site "Chess.com"]
[Date "2017.12.05"]
[Round "9"]
[White "jcibarra"]
[Black "krzyzan94"]
[Result "1/2-1/2"]
[WhiteElo "2679"]
[BlackElo "2609"]
[TimeControl "180+2"]
[EndTime "16:16:34 PST"]
[Termination "Game drawn - insufficient material"]

1. e4 {[%clk 0:03:01.9]} 1... e5 {[%clk 0:02:57]} 2. Nf3 {[%clk 0:03:02.6]} 2...
Nc6 {[%clk 0:02:58.2]} 3. d4 {[%clk 0:03:04]} 3... exd4 {[%clk 0:02:55.6]} 4.
Nxd4 {[%clk 0:03:05.9]} 4... Nf6 {[%clk 0:02:56.9]} 5. Nxc6 {[%clk 0:03:06.1]}
5... bxc6 {[%clk 0:02:58.4]} 6. Qe2 {[%clk 0:03:07.6]} 6... Bc5 {[%clk
0:02:40.1]} 7. e5 {[%clk 0:03:07.6]} 7... Nd5 {[%clk 0:02:35.1]} 8. c4 {[%clk
0:03:08.7]} 8... Nb6 {[%clk 0:02:31.2]} 9. Be3 {[%clk 0:03:08]} 9... Qe7 {[%clk
0:02:29.2]} 10. Bxc5 {[%clk 0:02:52.1]} 10... Qxc5 {[%clk 0:02:31.1]} 11. Nc3
{[%clk 0:02:52.9]} 11... Ba6 {[%clk 0:02:28.4]} 12. b3 {[%clk 0:02:45.3]} 12...
O-O {[%clk 0:02:17]} 13. f4 {[%clk 0:02:16.4]} 13... d5 {[%clk 0:01:50.9]} 14.
Qf2 {[%clk 0:01:56.7]} 14... Qb4 {[%clk 0:01:42.6]} 15. Qd2 {[%clk 0:01:57.3]}
15... dxc4 {[%clk 0:01:32.4]} 16. Ne4 {[%clk 0:01:58.1]} 16... c3 {[%clk
0:01:22.4]} 17. Qc2 {[%clk 0:01:40.2]} 17... Bxf1 {[%clk 0:01:15.3]} 18. Rxf1
{[%clk 0:01:38.2]} 18... Nd5 {[%clk 0:01:15.4]} 19. Rf3 {[%clk 0:01:34.7]} 19...
f5 {[%clk 0:01:12]} 20. Nxc3 {[%clk 0:00:58.4]} 20... Nxf4 {[%clk 0:01:00.1]}
21. Kf1 {[%clk 0:00:47.6]} 21... Ne6 {[%clk 0:00:52.1]} 22. Qf2 {[%clk
0:00:39.9]} 22... Ng5 {[%clk 0:00:48.3]} 23. Re3 {[%clk 0:00:31.8]} 23... Ne4
{[%clk 0:00:46.2]} 24. Qe1 {[%clk 0:00:32.7]} 24... Qc5 {[%clk 0:00:24.2]} 25.
Nxe4 {[%clk 0:00:23.8]} 25... fxe4+ {[%clk 0:00:26.1]} 26. Kg1 {[%clk
0:00:25.3]} 26... Rad8 {[%clk 0:00:24.3]} 27. Rc1 {[%clk 0:00:24.5]} 27... Qxe5
{[%clk 0:00:17.8]} 28. Rxe4 {[%clk 0:00:25]} 28... Qd5 {[%clk 0:00:18.2]} 29. h3
{[%clk 0:00:23.2]} 29... Rf7 {[%clk 0:00:18.7]} 30. Kh2 {[%clk 0:00:23]} 30...
Qd6+ {[%clk 0:00:18.8]} 31. Qg3 {[%clk 0:00:24.1]} 31... h6 {[%clk 0:00:15.7]}
32. Qxd6 {[%clk 0:00:22.4]} 32... Rxd6 {[%clk 0:00:17.6]} 33. Rc2 {[%clk
0:00:20.2]} 33... Rf5 {[%clk 0:00:12.1]} 34. Ra4 {[%clk 0:00:21.1]} 34... a5
{[%clk 0:00:12.1]} 35. Rac4 {[%clk 0:00:22.6]} 35... Rfd5 {[%clk 0:00:11.2]} 36.
Rxc6 {[%clk 0:00:18.2]} 36... Rxc6 {[%clk 0:00:08.9]} 37. Rxc6 {[%clk
0:00:20.1]} 37... Rd2 {[%clk 0:00:08.4]} 38. a4 {[%clk 0:00:18.6]} 38... Rb2
{[%clk 0:00:09.5]} 39. Rxc7 {[%clk 0:00:19.9]} 39... Rxb3 {[%clk 0:00:10.9]} 40.
Rc5 {[%clk 0:00:21.5]} 40... Ra3 {[%clk 0:00:11.6]} 41. Rxa5 {[%clk 0:00:22.7]}
41... Kh7 {[%clk 0:00:11.6]} 42. Ra6 {[%clk 0:00:24]} 42... h5 {[%clk
0:00:12.4]} 43. h4 {[%clk 0:00:25.3]} 43... Ra2 {[%clk 0:00:11]} 44. Kh3 {[%clk
0:00:26.2]} 44... Ra3+ {[%clk 0:00:12.4]} 45. Kh2 {[%clk 0:00:27.7]} 45... Ra2
{[%clk 0:00:13.8]} 46. Kg3 {[%clk 0:00:29.2]} 46... Ra3+ {[%clk 0:00:15.2]} 47.
Kf4 {[%clk 0:00:30.6]} 47... Ra2 {[%clk 0:00:16.8]} 48. g3 {[%clk 0:00:32.1]}
48... Ra3 {[%clk 0:00:18]} 49. Ra5 {[%clk 0:00:32.1]} 49... Kh6 {[%clk
0:00:18.7]} 50. Ra8 {[%clk 0:00:32.6]} 50... g6 {[%clk 0:00:18.3]} 51. Ra7
{[%clk 0:00:32.6]} 51... Rb3 {[%clk 0:00:16]} 52. a5 {[%clk 0:00:25.3]} 52...
Rb4+ {[%clk 0:00:17.1]} 53. Ke5 {[%clk 0:00:26.7]} 53... Rb5+ {[%clk 0:00:17.4]}
54. Kf6 {[%clk 0:00:27.5]} 54... Rf5+ {[%clk 0:00:16.9]} 55. Ke6 {[%clk
0:00:28.9]} 55... Rf3 {[%clk 0:00:18.8]} 56. Rb7 {[%clk 0:00:22.9]} 56... Rxg3
{[%clk 0:00:17.1]} 57. a6 {[%clk 0:00:24.4]} 57... Ra3 {[%clk 0:00:15.8]} 58.
Rb6 {[%clk 0:00:24.7]} 58... Ra4 {[%clk 0:00:15.6]} 59. Kf7 {[%clk 0:00:24.5]}
59... Rxh4 {[%clk 0:00:13.1]} 60. Rxg6+ {[%clk 0:00:25.2]} 60... Kh7 {[%clk
0:00:14.6]} 61. Rg5 {[%clk 0:00:23.4]} 61... Rf4+ {[%clk 0:00:10.8]} 62. Ke7
{[%clk 0:00:21.2]} 62... Ra4 {[%clk 0:00:09.4]} 63. Kf7 {[%clk 0:00:20.7]} 63...
Rf4+ {[%clk 0:00:05.7]} 64. Ke6 {[%clk 0:00:16.9]} 64... Ra4 {[%clk 0:00:06.9]}
65. Kf7 {[%clk 0:00:16.3]} 65... Rf4+ {[%clk 0:00:08]} 66. Ke7 {[%clk 0:00:18]}
66... Ra4 {[%clk 0:00:08.7]} 67. Rxh5+ {[%clk 0:00:15.4]} 67... Kg6 {[%clk
0:00:09.4]} 68. Rh1 {[%clk 0:00:16.4]} 68... Rxa6 {[%clk 0:00:10.5]} 69. Rg1+
{[%clk 0:00:17.8]} 69... Kf5 {[%clk 0:00:11.4]} 70. Rf1+ {[%clk 0:00:19.3]}
70... Ke5 {[%clk 0:00:12.8]} 71. Rh1 {[%clk 0:00:19.6]} 71... Ra7+ {[%clk
0:00:13.6]} 72. Kd8 {[%clk 0:00:21.1]} 72... Kd6 {[%clk 0:00:14.7]} 73. Rh6+
{[%clk 0:00:21.5]} 73... Ke5 {[%clk 0:00:15.6]} 74. Kc8 {[%clk 0:00:21.4]} 74...
Rg7 {[%clk 0:00:16]} 75. Rb6 {[%clk 0:00:21.1]} 75... Kd5 {[%clk 0:00:17]} 76.
Rb7 {[%clk 0:00:22.5]} 76... Rg8+ {[%clk 0:00:15.3]} 77. Kc7 {[%clk 0:00:23.5]}
77... Kc5 {[%clk 0:00:14.7]} 78. Rb1 {[%clk 0:00:22.1]} 78... Rg7+ {[%clk
0:00:15.9]} 79. Kd8 {[%clk 0:00:23.2]} 79... Kd6 {[%clk 0:00:16.8]} 80. Rd1+
{[%clk 0:00:23.9]} 80... Kc6 {[%clk 0:00:18.1]} 81. Ke8 {[%clk 0:00:23.1]} 81...
Rg8+ {[%clk 0:00:16.6]} 82. Kf7 {[%clk 0:00:23.9]} 82... Rg5 {[%clk 0:00:17.7]}
83. Kf6 {[%clk 0:00:24.4]} 83... Rd5 {[%clk 0:00:18.4]} 84. Re1 {[%clk
0:00:25.5]} 84... Kd6 {[%clk 0:00:19]} 85. Re8 {[%clk 0:00:25.8]} 85... Kd7
{[%clk 0:00:19.2]} 86. Re7+ {[%clk 0:00:26.7]} 86... Kd6 {[%clk 0:00:20.6]} 87.
Re8 {[%clk 0:00:28.1]} 87... Kd7 {[%clk 0:00:21.8]} 88. Re5 {[%clk 0:00:27.2]}
88... Rxe5 {[%clk 0:00:22.6]} 89. Kxe5 {[%clk 0:00:29]} 1/2-1/2